Cogmind - Beta 11.1 @@@ ROGUE MODE // 2022.06.21 @ 02:16:13 Player: Savant Result: Destroyed by Z-Imprinter with Zionite Laser-M Performance ------------- Evolutions (4) 2000 Regions Visited (17) 3400 Robots Destroyed (183) 915 Value Destroyed (4956) 4956 Prototype IDs (47) 940 Alien Tech Used (0) 0 Bonus (1393) 1393 TOTAL SCORE: 13604 Bonus ------- High Alert Combat Kills 15 Follower Combat Kills 798 Met Data Miner 300 Met Imprinter 300 Friendly Fire -20 Cogmind --------- Core Integrity 0/850 Matter 25/300 Energy 99/100 System Corruption 0% Temperature Cool (27) Movement Core (250) Ox4 Location -6/Deep Caves Parts ------- > --- POWER (1) -------- (None) > --- PROPULSION (3) --- (None) > --- UTILITY (9) ------ Medium Storage Unit Advanced Signal Interpreter Experimental Terrain Scan Processor Advanced Hacking Suite > --- WEAPON (2) ------- CR-A16's Pointy Stick > --- INVENTORY (10) --- Microactuators Precision Shock Rifle Proton Cannon Scatter Rocket Array Peak State ------------ > --- POWER ------------ Micro Nuclear Core > --- PROPULSION ------- Improved Gravmag System Cooled Aerolev Unit Cooled Gravmag System > --- UTILITY ---------- Medium Storage Unit Advanced Sensor Array Advanced Signal Interpreter Experimental Terrain Scan Processor Advanced Melee Analysis Suite Improved Hacking Suite Advanced Hacking Suite Advanced Hacking Suite Improved System Shield > --- WEAPON ----------- Cooled Particle Cannon Impact Mace > --- INVENTORY -------- Advanced Sensor Array Advanced Terrain Scanner Microactuators Experimental Thermal Shield Bomb Factory No. 2 Precision Shock Rifle Proton Cannon Scatter Rocket Array CR-A16's Pointy Stick [Rating: 83] Favorites ----------- Power Micro Nuclear Core Engine Heavy Ion Engine Power Core Micro Nuclear Core Propulsion Carbon-fiber Leg Treads Light Treads Leg Carbon-fiber Leg Wheel Wheel Hover Unit Aerolev Unit Flight Unit Cesium-ion Thruster Utility System Shield Device Structural Scanner Storage Medium Storage Unit Processor Improved Signal Interpreter Hackware System Shield Protection Medium Armor Plating Weapon Great Maul Energy Gun Precision Shock Rifle Energy Cannon Cooled Particle Cannon Ballistic Gun Flak Gun Ballistic Cannon Light Cannon Launcher Grenade Launcher Special Weapon Mining Laser Impact Weapon Great Maul Slashing Weapon Katana Piercing Weapon Spear Special Melee Weapon Improved Datajack Build | -11 -10 -10 -9 -9 -8 -7 -7 -7 -7 -7 -7 -6 -6 -6 -6 -6 -6 ------- Run | Scr Mat Min Mat Sto Mat Fac Was Fac Low Low Dat Pro Fac Low Low Zio Dee Slots Evolved 8 | . . . 2 . 2 2 . . . . . . 2 . . . . Power . | . . . . . . . . . . . . . . . . . . Propulsion 1 | . . . . . 1 . . . . . . . . . . . . Utility 7 | . . . 2 . 1 2 . . . . . . 2 . . . . Weapon . | . . . . . . . . . . . . . . . . . . Parts Attached 234 | 6 6 5 46 10 19 12 2 13 9 8 . 17 36 18 18 2 7 Power 11 | 1 1 1 2 1 1 1 . 1 . . . 2 . . . . . Engine 8 | 1 . 1 2 1 1 1 . . . . . 1 . . . . . Core 3 | . 1 . . . . . . 1 . . . 1 . . . . . Reactor . | . . . . . . . . . . . . . . . . . . Propulsion 35 | 2 . 1 11 . 8 4 . . . 3 . 1 5 . . . . Treads 7 | 2 . 1 2 . 2 . . . . . . . . . . . . Leg 8 | . . . 8 . . . . . . . . . . . . . . Wheel 3 | . . . . . 3 . . . . . . . . . . . . Hover 15 | . . . . . 3 4 . . . 2 . 1 5 . . . . Flight 2 | . . . 1 . . . . . . 1 . . . . . . . Utility 126 | 1 3 . 8 7 5 7 2 11 6 2 . 11 22 18 18 1 4 Device 96 | . . . 2 5 3 4 1 10 5 2 . 11 13 17 18 1 4 Storage 4 | 1 2 . . . . 1 . . . . . . . . . . . Processor 5 | . 1 . . . . 1 . . . . . . 2 1 . . . Hackware 12 | . . . 1 1 1 1 . 1 . . . . 7 . . . . Protection 9 | . . . 5 1 1 . 1 . 1 . . . . . . . . Artifact . | . . . . . . . . . . . . . . . . . . Weapon 62 | 2 2 3 25 2 5 . . 1 3 3 . 3 9 . . 1 3 Energy Gun 8 | 1 . . 2 1 1 . . . 1 . . 1 1 . . . . Energy Cannon 7 | . . . 4 . . . . . . . . . 3 . . . . Ballistic Gun 7 | 1 . . 4 . . . . . . 1 . . 1 . . . . Ballistic Cannon 4 | . 2 1 1 . . . . . . . . . . . . . . Launcher 9 | . . 1 2 . 1 . . . 1 1 . 1 1 . . . 1 Special Weapon 1 | . . 1 . . . . . . . . . . . . . . . Impact Weapon 17 | . . . 9 1 2 . . . . . . 1 2 . . 1 1 Slashing Weapon 6 | . . . 3 . . . . 1 1 . . . 1 . . . . Piercing Weapon 2 | . . . . . 1 . . . . . . . . . . . 1 Special Melee Weapon 1 | . . . . . . . . . . 1 . . . . . . . Unidentified Prototypes 14 | . . . 4 1 3 1 1 . . . . . 3 . . . 1 Corrupted Parts 1 | . . . . . . . . . . . . 1 . . . . . System Corruption 3 | . . . . . . . . . . . . 3 . . . . . Parts Lost 34 | . . 1 6 1 3 . . . . 4 . 2 6 . . . 11 Power 4 | . . 1 . . 1 . . . . 1 . . . . . . 1 Propulsion 10 | . . . 1 . 1 . . . . 2 . 1 2 . . . 3 Utility 14 | . . . 3 1 1 . . . . . . 1 3 . . . 5 Weapon 6 | . . . 2 . . . . . . 1 . . 1 . . . 2 Highest Loss Streak 11 | . . 1 2 1 1 . . . . 4 . 1 3 . . . 11 To Critical Strikes 1 | . . . 1 . . . . . . . . . . . . . . Average Slot Usage (%) 96 | . 94 99 99 98 96 99 100 94 91 81 90 95 97 100 100 99 90 Engine 5 | . 6 11 11 10 8 7 7 . . . . 6 . . . . . Core 2 | . 7 2 . . . . . 6 7 . . . 6 6 6 6 5 Treads 4 | . 28 28 1 . 6 . . . . . . . . . . . . Leg 5 | . . . 20 22 5 . . . . . . . . . . . . Wheel 1 | . . . . . 12 . . . . . . . . . . . . Hover 10 | . . . . . . 22 23 23 23 14 15 19 19 20 20 20 17 Device 9 | . . . 6 15 9 15 15 7 10 15 13 14 14 6 6 7 8 Storage 8 | . 14 14 11 11 9 7 7 7 7 7 7 7 6 6 6 6 6 Processor 7 | . 9 14 . . . 7 7 7 7 7 7 7 9 20 20 20 20 Hackware 18 | . . . 10 11 22 23 23 29 26 23 23 23 26 26 26 24 17 Protection 3 | . . . 15 5 3 . . . . . . . . . . . . Energy Cannon 1 | . . . 4 . . . . . . . . . 4 6 6 5 . Ballistic Gun 1 | . . . 1 . . . . . . 5 7 7 . . . . . Ballistic Cannon 3 | . 27 27 . . . . . . . . . . . . . . . Impact Weapon 5 | . . . 8 11 8 7 7 1 . . . 4 4 6 6 6 12 Slashing Weapon 2 | . . . 5 11 . . . 5 6 . . . 1 . . . . Piercing Weapon 1 | . . . . . 8 7 7 1 . . . . . . . . . Naked Turns . | . . . . . . . . . . . . . . . . . . Heaviest Build 52 | 12 31 31 51 51 47 29 28 28 23 23 17 24 29 28 28 27 52 Greatest Support 40 | 40 40 40 40 30 30 34 34 34 25 25 17 35 40 30 30 39 30 Greatest Overweight (x) 4 | . . . 1 1 4 . . . . 3 . 1 . . . . 2 Average Overweight (x) . | . . . . 1 1 . . . . . . . . . . . . Largest Inventory Capacity 15 | 8 15 15 15 15 15 15 10 10 10 10 10 10 10 10 10 10 10 Average Capacity 12 | 7 9 15 15 15 15 10 10 10 10 10 10 10 10 10 10 10 10 Most Carried 15 | 7 12 15 15 15 15 14 10 10 10 10 10 10 10 10 10 10 10 Average Carried 11 | 4 8 12 14 14 14 10 9 9 9 9 9 9 9 9 10 9 6 Final Capacity 15 | 8 15 15 15 15 15 10 10 10 10 10 10 10 10 10 10 10 10 Final Carried 15 | 6 12 15 15 15 15 10 10 10 10 9 10 10 10 10 10 10 4 Class Distribution -------------------- 47% | Hacker-Mutant 38% | Mutant 10% | Hacker-Scout Dominant Class ---------------- Mutant | -10/Materials Mutant | -10/Mines Mutant | -9/Materials Mutant | -9/Storage Hacker-Mutant | -8/Materials Hacker-Mutant | -7/Factory Hacker-Mutant | -7/Waste Hacker-Mutant | -7/Factory Hacker-Scout | -7/Lower Caves Hacker-Scout | -7/Lower Caves Hacker-Scout | -7/Data Miner Hacker-Scout | -6/Proximity Caves Hacker-Mutant | -6/Factory Hacker-Mutant | -6/Lower Caves Hacker-Mutant | -6/Lower Caves Hacker-Mutant | -6/Zion Hacker-Mutant | -6/Deep Caves Resources | -11 -10 -10 -9 -9 -8 -7 -7 -7 -7 -7 -7 -6 -6 -6 -6 -6 -6 ----------- Run | Scr Mat Min Mat Sto Mat Fac Was Fac Low Low Dat Pro Fac Low Low Zio Dee Matter Collected 3452 | 204 450 383 623 90 232 53 87 130 104 119 . 228 277 148 314 10 . Remotely . | . . . . . . . . . . . . . . . . . . Salvage Created 6539 | . 441 129 1248 946 1182 106 . 537 238 183 . 233 1018 34 178 . 66 Parts 275 | . 34 11 63 27 55 2 . 25 4 2 . 8 31 3 5 . 5 Haulers Intercepted 7 | . . . 3 2 1 . . . 1 . . . . . . . . Recyclers Shooed 2 | . . . 1 1 . . . . . . . . . . . . . Parts Field Recycled . | . . . . . . . . . . . . . . . . . . Retrieved Matter . | . . . . . . . . . . . . . . . . . . Parts Self-Destructed 39 | . . . . . . . . . 18 2 . 11 . 1 7 . . Prevented 15 | . . . . . . . . . 3 . . 6 . 2 4 . . Kills | -11 -10 -10 -9 -9 -8 -7 -7 -7 -7 -7 -7 -6 -6 -6 -6 -6 -6 ------- Run | Scr Mat Min Mat Sto Mat Fac Was Fac Low Low Dat Pro Fac Low Low Zio Dee Combat Hostiles Destroyed 123 | . 11 10 30 14 22 1 . 4 5 2 . 6 13 . 3 . 2 Melee 36 | . . . 5 8 14 . . 4 2 1 . . 1 . 1 . . Guns 10 | . . . 6 . . . . . . . . 3 1 . . . . Cannons 20 | . 11 8 1 . . . . . . . . . . . . . . AOE 28 | . . 2 10 . 3 . . . 3 1 . 3 4 . . . 2 Classes Destroyed 16 | . 4 . 6 1 1 . . . . . . 1 2 . . . 1 Worker 12 | . . . 4 1 . . . 3 . . . . 4 . . . . Builder 9 | . . . 1 1 3 3 . . . . . . 1 . . . . Tunneler 1 | . . . . . 1 . . . . . . . . . . . . Hauler 7 | . . . 3 2 1 . . . 1 . . . . . . . . Recycler 10 | . 1 . 1 3 2 . . 2 . . . . 1 . . . . Minesweeper 2 | . . . . . . . . . . . . 1 . 1 . . . Mechanic 1 | . . . . . . . . . . . . . 1 . . . . Operator 3 | . . . 2 . . 1 . . . . . . . . . . . Watcher 15 | . 2 . 1 2 3 . . 3 . . . . 4 . . . . Swarmer 37 | . 3 6 13 . 6 . . . 3 2 . . 4 . . . . Grunt 55 | . 8 4 9 8 8 1 . 2 2 . . 4 7 . 2 . . Brawler 1 | . . . . 1 . . . . . . . . . . . . . Duelist 4 | . . . 1 . . . . . . . . 2 . . 1 . . Sentry 23 | . . . 7 5 8 . . 2 . . . . 1 . . . . Programmer 1 | . . . . . . . . . . . . . 1 . . . . Z-Light 2 | . . . . . . . . . . . . . . . . . 2 Best Kill Streak 7 | . 4 3 7 5 3 2 . 2 3 1 . 4 5 1 3 . 2 Combat Bots Only 7 | . 3 3 7 5 3 1 . 2 3 1 . 4 5 . 3 . 2 Max Kills in Single Turn 4 | . 2 1 3 1 2 1 . 1 3 1 . 2 4 1 1 . 1 Gunslinging . | . . . . . . . . . . . . . . . . . . Exploded 3 | . . 1 3 . 2 . . . 3 1 . 2 3 . . . 1 Melee 1 | . . . 1 1 1 . . 1 1 1 . . 1 . 1 . . Uniques/NPCs Destroyed . | . . . . . . . . . . . . . . . . . . Combat | -11 -10 -10 -9 -9 -8 -7 -7 -7 -7 -7 -7 -6 -6 -6 -6 -6 -6 -------- Run | Scr Mat Min Mat Sto Mat Fac Was Fac Low Low Dat Pro Fac Low Low Zio Dee Damage Taken 6447 | . 189 365 1394 427 689 61 . 112 267 397 . 173 629 34 56 . 1654 Core 1556 | . 43 16 214 70 70 . . 27 129 106 . . 225 . . . 656 Absorbed by Shields . | . . . . . . . . . . . . . . . . . . Redirected to Shielding 26 | . . . . . . . . . 26 . . . . . . . . Regen/Repaired (Parts) 496 | . . . 165 76 . . . . . . . . 255 . . . . Core Remaining (%) 70 | 100 . 76 . 29 87 . . . . . . 62 . . . . . Volleys Fired 159 | . 20 26 42 . 2 . . . 1 8 . 10 37 1 10 . 2 Largest 2 | . 2 2 2 . 1 . . . 1 1 . 2 2 1 1 . 1 Hottest 136 | . 70 70 136 . 33 . . . 39 39 . 83 88 30 30 . 50 Shots Fired 247 | . 40 51 79 . 2 . . . 1 8 . 14 39 1 10 . 2 Gun 91 | . . . 56 . . . . . . 7 . 12 16 . . . . Cannon 139 | . 40 49 18 . . . . . . . . . 21 1 10 . . Launcher 17 | . . 2 5 . 2 . . . 1 1 . 2 2 . . . 2 Special . | . . . . . . . . . . . . . . . . . . Kinetic 162 | . 40 49 54 . . . . . . 7 . 10 2 . . . . Thermal 52 | . . . 20 . . . . . . . . . 21 1 10 . . Explosive 17 | . . 2 5 . 2 . . . 1 1 . 2 2 . . . 2 Electromagnetic 16 | . . . . . . . . . . . . 2 14 . . . . Robot Hit Streak 17 | . 9 15 6 . 1 . . . . 7 . 13 17 . . . 1 Robot Miss Streak 11 | . 2 3 5 . 1 . . . . 4 . 4 3 . . . 11 Penetration Max . | . . . . . . . . . . . . . . . . . . Secondary Targets 1 | . . . 1 . . . . . . . . . . . . . . Max Gunslinging Chain 1 | . . . 1 . . . . . . . . . . . . . . Shots Hit Robots 372 | . 24 28 84 49 59 7 . 15 11 10 1 17 49 1 4 . 13 Core Hits 169 | . 16 9 31 10 23 1 . 8 5 12 . 23 19 . . . 12 Critical Kills 12 | . . . 3 4 4 1 . . . . . . . . . . . Critical Parts Destroyed 36 | . . . 10 7 9 2 . 1 . . . 1 4 . 1 . 1 Critical Strikes 55 | . 1 . 14 11 17 3 . 1 . . . 1 5 . 1 . 1 Blast 1 | . 1 . . . . . . . . . . . . . . . . Corrupt 1 | . . . . . . . . . . . . . 1 . . . . Smash 49 | . . . 13 11 14 3 . 1 . . . 1 4 . 1 . 1 Sever 1 | . . . 1 . . . . . . . . . . . . . . Impale 3 | . . . . . 3 . . . . . . . . . . . . Melee Attacks 477 | . . . 65 67 87 41 . 52 17 14 1 10 84 3 9 8 19 Impact 315 | . . . 53 54 59 23 . 20 . . . 10 61 3 9 8 15 Slashing 109 | . . . 12 13 . . . 30 17 14 . . 23 . . . . Piercing 52 | . . . . . 28 18 . 2 . . . . . . . . 4 Sneak Attacks 49 | . . . 12 9 7 2 . 6 3 . 1 1 7 1 . . . Combat Hostiles 3 | . . . . . . . . 1 2 . . . . . . . . Follow-up Attacks 20 | . . . 2 7 10 . . . . . . . . . . . 1 Damage Inflicted 17265 | . 452 609 3371 2495 2641 430 . 1161 771 373 . 888 2728 141 197 . 1008 Guns 1162 | . . . 435 . . . . . . 159 . 246 322 . . . . Cannons 1443 | . 452 535 188 . . . . . . . . . 268 . . . . Explosions 2354 | . . 72 537 . 211 . . . 130 60 . 402 510 . . . 432 Melee 12304 | . . . 2211 2495 2430 430 . 1161 641 154 . 240 1628 141 197 . 576 Ramming 2 | . . 2 . . . . . . . . . . . . . . . Kinetic 1794 | . 452 535 382 . . . . . . 159 . 210 56 . . . . Thermal 631 | . . . 241 . . . . . . . . . 390 . . . . Explosive 2232 | . . 72 537 . 211 . . . 130 60 . 402 388 . . . 432 Electromagnetic 302 | . . . . . . . . . . . . 36 266 . . . . Impact 9110 | . . . 1868 2287 1897 430 . 228 . . . 240 1345 141 197 . 477 Slashing 2562 | . . . 343 208 . . . 933 641 154 . . 283 . . . . Piercing 632 | . . . . . 533 . . . . . . . . . . . 99 Highest Corruption 3 | . . . . . . . . . . . . 3 . . . . . Average Corruption 3 | . . . . . . . . . . . . 3 . . . . . Corruption Purged . | . . . . . . . . . . . . . . . . . . Corruption Blocked . | . . . . . . . . . . . . . . . . . . Overload Shots . | . . . . . . . . . . . . . . . . . . Overflow Damage 4389 | . 15 32 891 707 810 271 . 321 168 19 . 175 715 56 122 . 87 Projectiles 71 | . 15 32 . . . 18 . . . . . . 6 . . . . Explosions 46 | . . . 5 . . . . . . . . 30 7 . . . 4 Melee 4272 | . . . 886 707 810 253 . 321 168 19 . 145 702 56 122 . 83 Knockbacks 40 | . 1 8 8 5 5 3 . 1 . . . 1 1 . 1 . 6 Impact 29 | . . . 7 5 5 2 . 1 . . . 1 1 . 1 . 6 Kinetic 9 | . 1 8 . . . . . . . . . . . . . . . Secondary 2 | . . . 1 . . 1 . . . . . . . . . . . Self-Inflicted Damage 109 | . . 23 70 . . . . . 16 . . . . . . . . Shots 6 | . . 2 3 . . . . . 1 . . . . . . . . Rammed 1 | . . 1 . . . . . . . . . . . . . . . Targets Rammed 1 | . . 1 . . . . . . . . . . . . . . . Kicked . | . . . . . . . . . . . . . . . . . . Crushed . | . . . . . . . . . . . . . . . . . . Highest Temperature 354 | . 54 195 354 . 7 . . . 13 . . 12 114 . 1 . 14 Average Temperature 58 | . 19 61 82 . 5 . . . 6 . . 8 60 . 1 . 5 Received Heat Transfer 2328 | . 63 21 429 186 405 36 . . 180 . . 54 261 . 45 . 648 Effects 1 | . . . 1 . . . . . . . . . . . . . . Interference 1 | . . . 1 . . . . . . . . . . . . . . Siege Activations . | . . . . . . . . . . . . . . . . . . Robots Corrupted 2 | . . . . . . . . . . . . . 2 . . . . Combat Hostiles 2 | . . . . . . . . . . . . . 2 . . . . Parts Fried 65 | . . . 20 16 11 . . 4 . . . 2 9 1 2 . . Impact Corruptions 124 | . . . 28 24 25 10 . 4 . . . 5 20 1 3 . 4 Robots Melted . | . . . . . . . . . . . . . . . . . . Combat Hostiles . | . . . . . . . . . . . . . . . . . . Parts Melted 2 | . . . 1 . . . . . . . . . 1 . . . . Heat Transferred 914 | . . . 444 . . . . . . . . . 470 . . . . Parts Sabotaged . | . . . . . . . . . . . . . . . . . . Parts Stolen . | . . . . . . . . . . . . . . . . . . Parts Stripped . | . . . . . . . . . . . . . . . . . . Power Chain Reactions 1 | . . . . . . . . . . . . . 1 . . . . Missiles Intercepted . | . . . . . . . . . . . . . . . . . . Alert | -11 -10 -10 -9 -9 -8 -7 -7 -7 -7 -7 -7 -6 -6 -6 -6 -6 -6 ------- Run | Scr Mat Min Mat Sto Mat Fac Was Fac Low Low Dat Pro Fac Low Low Zio Dee Peak Influence 438 | . 322 306 438 275 322 211 29 203 . . . . 242 . . . . Initial 165 | . . 76 32 165 7 146 14 20 . . . . 32 . . . . Average 138 | . 171 140 202 82 149 111 15 96 . . . . 130 . . . . Maximum Alert Level 2 | . 1 1 2 1 1 1 . 1 . . . . 1 . . . . Low Security (%) 78 | 100 68 83 59 86 71 97 100 97 . . . . 86 . . . . Level 1 19 | . 31 16 31 13 28 2 . 2 . . . . 13 . . . . Level 2 1 | . . . 8 . . . . . . . . . . . . . . Level 3 . | . . . . . . . . . . . . . . . . . . Level 4 . | . . . . . . . . . . . . . . . . . . Level 5 . | . . . . . . . . . . . . . . . . . . High Security . | . . . . . . . . . . . . . . . . . . Max Security . | . . . . . . . . . . . . . . . . . . Squads Dispatched 25 | . 2 1 2 1 3 1 . 3 . . . . 12 . . . . Investigation 15 | . 2 1 . . 2 1 . 2 . . . . 7 . . . . Extermination 4 | . . . . . . . . 1 . . . . 3 . . . . Reinforcement 6 | . . . 2 1 1 . . . . . . . 2 . . . . Assault . | . . . . . . . . . . . . . . . . . . Garrison . | . . . . . . . . . . . . . . . . . . Intercept . | . . . . . . . . . . . . . . . . . . Searches Triggered . | . . . . . . . . . . . . . . . . . . Data Miner Redirects 1 | . . . . . . . . . . . . . 1 . . . . Construction Impeded 1 | . . . . . . . . . . . . . 1 . . . . Haulers Reinforced . | . . . . . . . . . . . . . . . . . . Active Scanning Responses . | . . . . . . . . . . . . . . . . . . Cargo Convoy Interrupts . | . . . . . . . . . . . . . . . . . . Stealth | -11 -10 -10 -9 -9 -8 -7 -7 -7 -7 -7 -7 -6 -6 -6 -6 -6 -6 --------- Run | Scr Mat Min Mat Sto Mat Fac Was Fac Low Low Dat Pro Fac Low Low Zio Dee Distress Signals 12 | . 1 . 3 5 2 . . . . . . . 1 . . . . Communications Jammed . | . . . . . . . . . . . . . . . . . . Distress Signals . | . . . . . . . . . . . . . . . . . . Times Spotted 216 | . 18 13 39 20 37 3 1 14 12 3 . 10 39 1 3 . 3 Peak Tracking Total 9 | . 3 3 9 5 3 2 1 2 5 3 . 4 5 1 3 . 3 Tactical Retreats 12 | . . 1 1 2 1 1 . . 1 . . . 5 . . . . Traps | -11 -10 -10 -9 -9 -8 -7 -7 -7 -7 -7 -7 -6 -6 -6 -6 -6 -6 ------- Run | Scr Mat Min Mat Sto Mat Fac Was Fac Low Low Dat Pro Fac Low Low Zio Dee Traps Triggered 2 | . . . 1 . . 1 . . . . . . . . . . . Indirectly . | . . . . . . . . . . . . . . . . . . Trap Hack Attempts . | . . . . . . . . . . . . . . . . . . Triggered . | . . . . . . . . . . . . . . . . . . Disarmed . | . . . . . . . . . . . . . . . . . . Reprogrammed 30 | . 12 . . . . 6 . 12 . . . . . . . . . Reused 7 | . . . . . . . . 4 . . . 1 . 1 . . 1 Traps Extracted . | . . . . . . . . . . . . . . . . . . Installed 12 | . . . . . . . . . . . . 4 . 5 . . 3 Triggered 9 | . . 1 . . . . . 4 . . . 3 . 1 . . . Fabricated Traps 3 | . . . . . . . . . . . . . . . . . 3 Most Traps Carried 4 | . . . . . . . . . . . . 4 . 1 1 1 3 Machines | -11 -10 -10 -9 -9 -8 -7 -7 -7 -7 -7 -7 -6 -6 -6 -6 -6 -6 ---------- Run | Scr Mat Min Mat Sto Mat Fac Was Fac Low Low Dat Pro Fac Low Low Zio Dee Machines Disabled 8 | . 1 1 1 2 1 . . . 1 . . . 1 . . . . Max in Single Turn 1 | . 1 . 1 1 1 . . . . . . . 1 . . . . Garrison Access 5 | . . . . . 1 2 . . . . . . 2 . . . . Machines Sabotaged . | . . . . . . . . . . . . . . . . . . Garrisons Compromised . | . . . . . . . . . . . . . . . . . . Overloaded Fab Kills . | . . . . . . . . . . . . . . . . . . Hacking | -11 -10 -10 -9 -9 -8 -7 -7 -7 -7 -7 -7 -6 -6 -6 -6 -6 -6 --------- Run | Scr Mat Min Mat Sto Mat Fac Was Fac Low Low Dat Pro Fac Low Low Zio Dee Machines Accessed 97 | . 10 1 8 8 14 12 . 12 1 1 4 . 26 . . . . Terminals 55 | . 8 . 5 6 10 5 . 9 . . . . 12 . . . . Fabricators 7 | . . . . . . 1 . 2 . . . . 4 . . . . Repair Stations 5 | . . . 1 1 . . . . . . . . 3 . . . . Recycling Units 11 | . 2 . 1 1 2 2 . . . . . . 3 . . . . Scanalyzers 7 | . . . 1 . 1 2 . 1 . . . . 2 . . . . Garrison Access 5 | . . . . . 1 2 . . . . . . 2 . . . . Total Hacks 396 | . 40 1 34 17 53 39 . 63 5 1 32 . 111 . . . . Successful 299 | . 26 1 26 16 41 30 . 46 5 1 32 . 75 . . . . Failed 95 | . 13 . 8 1 11 9 . 17 . . . . 36 . . . . Catastrophic 7 | . . . . . . 1 . 1 . . . . 5 . . . . Database Lockouts 2 | . 1 . . . 1 . . . . . . . . . . . . Manual 169 | . 22 . 15 6 26 22 . 33 . . . . 45 . . . . Terminals 239 | . 37 . 21 13 42 23 . 45 . . . . 58 . . . . Fabricators 26 | . . . . . . 1 . 8 . . . . 17 . . . . Repair Stations 26 | . . . 10 2 . . . . . . . . 14 . . . . Recycling Units 25 | . 3 . 1 2 2 7 . . . . . . 10 . . . . Scanalyzers 33 | . . . 2 . 8 6 . 10 . . . . 7 . . . . Garrison Access 8 | . . . . . 1 2 . . . . . . 5 . . . . Terminal Hacks 150 | . 18 1 8 9 21 8 . 24 5 1 32 . 23 . . . . Record 16 | . . . . . . . . . 5 . 11 . . . . . . Part Schematic 22 | . 2 . . . 1 . . 3 . . 12 . 4 . . . . Robot Schematic 8 | . . . . . 1 . . 1 . . 6 . . . . . . Robot Analysis 2 | . 1 . . 1 . . . . . . . . . . . . . Prototype ID Bank 14 | . 1 . 1 . 5 1 . 2 . . 3 . 1 . . . . Open Door 5 | . . 1 . 3 . . . . . 1 . . . . . . . Level Access Points 1 | . . . . . 1 . . . . . . . . . . . . Branch Access Points 5 | . 1 . 1 . . 1 . 1 . . . . 1 . . . . Terminal Index 6 | . 1 . 1 . 1 1 . 1 . . . . 1 . . . . Fabricator Index 2 | . . . . . . . . 1 . . . . 1 . . . . Repair Station Index 1 | . . . . . . . . . . . . . 1 . . . . Recycling Unit Index 3 | . 1 . . . 1 . . 1 . . . . . . . . . Scanalyzer Index 2 | . . . . . . . . 1 . . . . 1 . . . . Garrison Index 4 | . . . . 1 . 1 . 1 . . . . 1 . . . . Alert Level 3 | . 1 . 1 . 1 . . . . . . . . . . . . Unreport Threat 8 | . . . . . 2 . . 2 . . . . 4 . . . . Locate Traps 8 | . 2 . . . 1 1 . 3 . . . . 1 . . . . Reprogram Traps 6 | . 3 . . . . 1 . 2 . . . . . . . . . Dispatch Records 1 | . . . . . 1 . . . . . . . . . . . . Security Status 1 | . . . 1 . . . . . . . . . . . . . . Patrol Status 3 | . 1 . 1 . . . . 1 . . . . . . . . . Recall Investigation 6 | . . . . . 1 . . 1 . . . . 4 . . . . Recall Extermination 3 | . . . . . . . . 1 . . . . 2 . . . . Hauler Manifests 3 | . 1 . . 1 1 . . . . . . . . . . . . Registered Components 3 | . . . 1 1 1 . . . . . . . . . . . . Zone Layout 14 | . 3 . 1 2 3 2 . 2 . . . . 1 . . . . Fabricator Hacks 17 | . . . . . . 1 . 5 . . . . 11 . . . . Network Status 2 | . . . . . . 1 . . . . . . 1 . . . . Load Schematic 7 | . . . . . . . . 2 . . . . 5 . . . . Build 8 | . . . . . . . . 3 . . . . 5 . . . . Repair Station Hacks 23 | . . . 10 2 . . . . . . . . 11 . . . . Scan Component 12 | . . . 5 1 . . . . . . . . 6 . . . . Repair 11 | . . . 5 1 . . . . . . . . 5 . . . . Recycling Unit Hacks 10 | . 1 . 1 1 . 3 . . . . . . 4 . . . . Report Inventory 7 | . 1 . 1 . . 2 . . . . . . 3 . . . . Retrieve Components 3 | . . . . 1 . 1 . . . . . . 1 . . . . Scanalyzer 33 | . . . 2 . 8 6 . 10 . . . . 7 . . . . Insert Component 15 | . . . 1 . 4 3 . 4 . . . . 3 . . . . Analyze 18 | . . . 1 . 4 3 . 6 . . . . 4 . . . . Garrison Access Hacks 5 | . . . . . 1 2 . . . . . . 2 . . . . Seal Access 5 | . . . . . 1 2 . . . . . . 2 . . . . Unauthorized Hacks 61 | . 7 . 5 4 11 10 . 7 . . . . 17 . . . . Terminals 44 | . 5 . 5 3 9 7 . 6 . . . . 9 . . . . Track 6 | . . . . . 1 2 . 1 . . . . 2 . . . . Assimilate 11 | . 1 . 1 . 3 1 . 2 . . . . 3 . . . . Botnet 18 | . 3 . 2 2 3 3 . 2 . . . . 3 . . . . Operators 9 | . 1 . 2 1 2 1 . 1 . . . . 1 . . . . Fabricators 6 | . . . . . . . . 1 . . . . 5 . . . . Report 1 | . . . . . . . . . . . . . 1 . . . . Prioritize 3 | . . . . . . . . 1 . . . . 2 . . . . Liberate 1 | . . . . . . . . . . . . . 1 . . . . Haulers 1 | . . . . . . . . . . . . . 1 . . . . Repair Stations . | . . . . . . . . . . . . . . . . . . Recycling Units 11 | . 2 . . 1 2 3 . . . . . . 3 . . . . Reject 3 | . . . . 1 . 1 . . . . . . 1 . . . . Recyclers 2 | . . . . . . 1 . . . . . . 1 . . . . Mask 2 | . . . . . . 1 . . . . . . 1 . . . . Tunnel 4 | . 2 . . . 2 . . . . . . . . . . . . Scanalyzers . | . . . . . . . . . . . . . . . . . . Garrison Access . | . . . . . . . . . . . . . . . . . . Data Cores Recovered . | . . . . . . . . . . . . . . . . . . Used . | . . . . . . . . . . . . . . . . . . Hacking Detections 68 | . 8 . 6 6 11 6 . 11 . . . . 20 . . . . Full Trace Events 10 | . . . . . . 1 . 2 . . . . 7 . . . . Feedback Events . | . . . . . . . . . . . . . . . . . . Feedback Blocked . | . . . . . . . . . . . . . . . . . . Robot Schematics Acquired 8 | . . . . . 1 . . 1 . . 6 . . . . . . Robots Built 9 | . . . . . . . . 7 . . . . 2 . . . . Authchips . | . . . . . . . . . . . . . . . . . . Time 202 | . . . . . . . . 158 . . . . 44 . . . . Total Robot Build Rating 34 | . . . . . . . . 26 . . . . 8 . . . . Part Schematics Acquired 37 | . 2 . 1 . 5 3 . 7 . . 12 . 7 . . . . Parts Built 4 | . . . . . . . . . . . . . 4 . . . . Authchips 1 | . . . . . . . . . . . . . 1 . . . . Time 185 | . . . . . . . . . . . . . 185 . . . . Total Part Build Rating 22 | . . . . . . . . . . . . . 22 . . . . Parts Repaired 11 | . . . 5 1 . . . . . . . . 5 . . . . Time 554 | . . . 204 51 . . . . . . . . 299 . . . . Parts Recycled . | . . . . . . . . . . . . . . . . . . Recycled Matter . | . . . . . . . . . . . . . . . . . . Retrieved Matter . | . . . . . . . . . . . . . . . . . . Retrieved Components 15 | . . . . 10 . 3 . . . . . . 2 . . . . Parts Scanalyzed 15 | . . . 1 . 4 3 . 4 . . . . 3 . . . . Part Schematics Acquired 15 | . . . 1 . 4 3 . 4 . . . . 3 . . . . Parts Damaged . | . . . . . . . . . . . . . . . . . . Bothacking | -11 -10 -10 -9 -9 -8 -7 -7 -7 -7 -7 -7 -6 -6 -6 -6 -6 -6 ------------ Run | Scr Mat Min Mat Sto Mat Fac Was Fac Low Low Dat Pro Fac Low Low Zio Dee Used RIF Installer . | . . . . . . . . . . . . . . . . . . Robots Hacked 1 | . . . . . . . . . . . 1 . . . . . . Non-combat . | . . . . . . . . . . . . . . . . . . Combat 1 | . . . . . . . . . . . 1 . . . . . . Robot Hacks Applied 1 | . . . . . . . . . . . 1 . . . . . . parse_system 1 | . . . . . . . . . . . 1 . . . . . . Relay Couplers Released . | . . . . . . . . . . . . . . . . . . Fabnet Peak Effective % . | . . . . . . . . . . . . . . . . . . Robots Rewired 3 | . . . . . . . . . 1 . . 1 . 1 . . . Allies Hacked 1 | . . . . . . . . . 1 . . . . . . . . Hacks Repelled . | . . . . . . . . . . . . . . . . . . Allies | -11 -10 -10 -9 -9 -8 -7 -7 -7 -7 -7 -7 -6 -6 -6 -6 -6 -6 -------- Run | Scr Mat Min Mat Sto Mat Fac Was Fac Low Low Dat Pro Fac Low Low Zio Dee Total Allies 27 | . 1 2 1 . 1 1 . 9 4 . . 2 5 1 . . . Largest Group 7 | . 1 2 1 1 1 1 . 7 6 5 2 3 3 2 1 . . Highest-Rated Group 211 | . 10 41 10 10 10 26 . 211 177 151 49 142 122 67 41 . . Highest-Rated Ally 96 | . 10 31 10 10 10 26 . 37 37 37 26 96 96 41 41 . . Total Orders 66 | . . . 2 21 6 1 . 4 8 4 . 6 8 6 . . . STAY 29 | . . . 1 3 4 1 . 2 6 2 . 3 4 3 . . . FOLLOW 22 | . . . 1 3 2 . . 2 2 2 . 3 4 3 . . . EXPLORE 13 | . . . . 13 . . . . . . . . . . . . . RETURN 2 | . . . . 2 . . . . . . . . . . . . . Ally Attacks 142 | . . 9 . . . . . 31 57 2 . 21 18 . 4 . . Total Damage 3475 | . . 84 . . . . . 526 1433 66 . 686 490 . 190 . . Kills 27 | . . 2 . . . . . 6 11 . . 4 2 . 2 . . Allies Corrupted 2 | . . . . . . . . . 2 . . . . . . . . Allies Melted . | . . . . . . . . . . . . . . . . . . Intel | -11 -10 -10 -9 -9 -8 -7 -7 -7 -7 -7 -7 -6 -6 -6 -6 -6 -6 ------- Run | Scr Mat Min Mat Sto Mat Fac Was Fac Low Low Dat Pro Fac Low Low Zio Dee Robot Analysis Total 2 | . 1 . . 1 . . . . . . . . . . . . . Derelict Logs Recovered 9 | . . 1 . . . . . . 2 2 . 1 . 2 1 . . Drone Launches 31 | . . . . 31 . . . . . . . . . . . . . Drone Recoveries 15 | . . . . 15 . . . . . . . . . . . . . Exploration | -11 -10 -10 -9 -9 -8 -7 -7 -7 -7 -7 -7 -6 -6 -6 -6 -6 -6 ------------- Run | Scr Mat Min Mat Sto Mat Fac Was Fac Low Low Dat Pro Fac Low Low Zio Dee Turns Passed 18287 | 82 1161 1120 2562 2113 1587 655 83 1043 747 1029 48 1312 1982 960 877 663 263 Spaces Moved 19993 | 45 664 627 1006 829 1054 1080 176 1682 1449 1274 90 2204 3260 1581 1345 1405 222 Core 92 | 4 . . . . . . . . . 88 . . . . . . . Treads 1379 | 41 664 627 47 . . . . . . . . . . . . . . Legs 1978 | . . . 959 829 190 . . . . . . . . . . . . Wheels 864 | . . . . . 864 . . . . . . . . . . . . Hover 15680 | . . . . . . 1080 176 1682 1449 1186 90 2204 3260 1581 1345 1405 222 Flight . | . . . . . . . . . . . . . . . . . . Fastest Speed 42 | 50 160 160 160 190 95 42 42 42 42 42 46 45 45 45 45 45 45 Average Speed 70 | 150 160 160 188 190 117 42 42 42 42 56 46 45 45 45 45 45 50 Slowest Speed 330 | 160 160 160 190 190 330 42 42 42 42 200 46 106 51 45 45 45 160 Overloaded Moves . | . . . . . . . . . . . . . . . . . . Propulsion Burnouts . | . . . . . . . . . . . . . . . . . . Robots Hopped . | . . . . . . . . . . . . . . . . . . Cave-ins Triggered . | . . . . . . . . . . . . . . . . . . Exploration Rate (%) 71 | 4 90 96 62 94 68 30 87 37 96 96 75 93 56 96 96 86 22 Regions Visited 17 Branch Regions 10 Pre-discovered Areas 8 | . 2 1 . . 2 . . . . . 1 1 . 1 . . . Known Exits Taken 12 | . 1 . 1 . 1 . . 1 1 1 1 1 1 1 1 1 . Unknown Exits Taken 3 | 1 . 1 . 1 . . . . . . . . . . . . . Scrap Searched 24 | . . 1 . . . . . . 6 5 . 3 . 4 1 4 . Spaces Dug 209 | . . 9 28 4 14 26 . 30 14 13 . 5 47 3 13 3 . Terrain Destroyed 340 | . . 17 36 4 21 26 . 30 14 13 . 34 69 3 13 3 57 Melee 146 | . . . 8 4 14 26 . 30 3 . . 5 46 2 5 3 . Projectile 10 | . . . . . . . . . . . . . 1 1 8 . . AOE 184 | . . 17 28 . 7 . . . 11 13 . 29 22 . . . 57 Terrain Rammed . | . . . . . . . . . . . . . . . . . . Walls Destroyed . | . . . . . . . . . . . . . . . . . . Machines Disabled . | . . . . . . . . . . . . . . . . . . Actions | -11 -10 -10 -9 -9 -8 -7 -7 -7 -7 -7 -7 -6 -6 -6 -6 -6 -6 --------- Run | Scr Mat Min Mat Sto Mat Fac Was Fac Low Low Dat Pro Fac Low Low Zio Dee Total 23260 | 57 725 694 1489 1259 1253 1218 185 1922 1550 1547 96 2484 3618 1817 1583 1423 340 Wait 2155 | . 21 20 287 343 71 82 . 161 64 239 5 220 166 197 202 . 77 Move 19977 | 44 663 626 1005 828 1053 1080 175 1681 1448 1273 89 2203 3259 1580 1344 1404 222 Hop . | . . . . . . . . . . . . . . . . . . Pick Up 122 | 7 7 10 23 4 11 2 3 6 5 2 . 10 21 6 . 3 2 Fast Attach 57 | 5 4 . 10 7 11 2 2 4 . 3 . 2 5 . . 2 . Attach 40 | 1 . 1 9 . 3 5 . . 3 3 . 1 8 1 . . 5 Detach 17 | . 2 . 5 1 3 . . . . 1 1 . 1 1 . 1 1 Swap 138 | . 2 4 27 3 6 5 . 9 6 2 . 14 23 17 18 . 2 Drop 137 | . 6 6 24 11 18 7 5 11 4 2 . 9 15 5 . 5 9 Fire 159 | . 20 26 42 . 2 . . . 1 8 . 10 37 1 10 . 2 Melee 433 | . . . 57 54 75 35 . 50 17 14 1 10 83 3 9 8 17 Ram . | . . . . . . . . . . . . . . . . . . Kick . | . . . . . . . . . . . . . . . . . . Crush 1 | . . 1 . . . . . . . . . . . . . . . Escape Stasis . | . . . . . . . . . . . . . . . . . . Rewire 4 | . . . . . . . . . 2 . . 1 . 1 . . . Trap 12 | . . . . . . . . . . . . 4 . 5 . . 3 Miscellaneous 8 | . . . . 8 . . . . . . . . . . . . . Route ------- -11/Scrapyard -10/Materials (discovered 5 exits: *Mat x3 / *Min x2) -10/Mines (discovered 3 exits: *Mat x2 / [*Exi]) -9/Materials (discovered 4 exits: *Mat / *Min / *Sto x2) -9/Storage -8/Materials (discovered 3 exits: *Fac x3) -7/Factory (discovered 2 exits: Low x2) -7/Waste -7/Factory (discovered 4 exits: *Fac x2 / *Low x2) -7/Lower Caves (discovered 2 exits: *Low / *Dat) -7/Lower Caves (discovered 2 exits: *Fac / *Dat) -7/Data Miner -6/Proximity Caves -6/Factory (discovered 4 exits: *Fac x2 / *Low x2) -6/Lower Caves (discovered 2 exits: *Low / *Zio) -6/Lower Caves (discovered 2 exits: *Fac / *Zio) -6/Zion (discovered 2 exits: *Dee / [*Pro]) -6/Deep Caves History --------- Turn | Location | Event 12 | -11/Scrapyard | Discovered new exit (range 16) 83 | -11/Scrapyard | Entered Materials 239 | -10/Materials | Identified exit to Mines 304 | -10/Materials | Build established: Mutant 354 | -10/Materials | Discovered new exit (range 15) 545 | -10/Materials | Central database locked down 548 | -10/Materials | Discovered new exit (range 13) 938 | -10/Materials | Discovered new exit (range 16) 1244 | -10/Materials | Entered Mines 1244 | -10/Mines | Accompanied by 1 ally 1319 | -10/Mines | Learned location of Zion (-6) 1412 | -10/Mines | Discovered new exit (range 13) 2151 | -10/Mines | Deemed a non-threat by the Exiles lab entrance 2151 | -10/Mines | Discovered new exit (range 5) 2182 | -10/Mines | Met a Derelict shopkeep closing up shop 2356 | -10/Mines | Discovered new exit (range 6) 2364 | -10/Mines | Entered Materials 2364 | -9/Materials | Evolved 2 slots: Utility x2 2452 | -9/Materials | Identified exit to Mines 2452 | -9/Materials | Identified exit to Storage 3374 | -9/Materials | Discovered new exit (range 10) 3681 | -9/Materials | Repaired Katana 3709 | -9/Materials | Repaired Structural Scanner 3761 | -9/Materials | Repaired Adv. Beam Cannon 3813 | -9/Materials | Repaired Imp. Medium Laser 3852 | -9/Materials | Repaired Minigun 4343 | -9/Materials | Core integrity fell below 50% 4365 | -9/Materials | Destroyed 7 combat bots 4926 | -9/Materials | Entered Storage 4926 | -9/Storage | Accompanied by 1 ally 6524 | -9/Storage | Repaired Hvy. Ion Engine 6566 | -9/Storage | Discovered new exit (range 11) 7039 | -9/Storage | Entered Materials 7039 | -8/Materials | Accompanied by 1 ally 7039 | -8/Materials | Evolved 2 slots: Propulsion x1, Utility x1 7322 | -8/Materials | Build established: Hacker-Mutant 8063 | -8/Materials | Discovered new exit (range 9) 8151 | -8/Materials | Identified exit to Factory 8162 | -8/Materials | Central database locked down 8626 | -8/Materials | Entered Factory 8626 | -7/Factory | Accompanied by 1 ally 8626 | -7/Factory | Evolved 2 slots: Utility x2 9069 | -7/Factory | Identified exit to Lower Caves 9281 | -7/Factory | Sucked down chute 9281 | -7/Factory | Entered Waste 9281 | -7/Waste | The area was eerily silent 9340 | -7/Waste | A Compactor rumbled back to life 9340 | -7/Waste | Spotted C-40 Crusher 9346 | -7/Waste | Found Prototype Processor 9358 | -7/Waste | Discovered new exit (range 10) 9363 | -7/Waste | Identified exit to Factory 9364 | -7/Waste | Entered Factory 9407 | -7/Factory | Discovered new exit (range 16) 9863 | -7/Factory | Fabricated H-55 Commando? 9903 | -7/Factory | Identified Exp. Terrain Scan Processor 10199 | -7/Factory | Fabricated L-41 Fighter (x3) 10239 | -7/Factory | Fabricated P-60 Hacker (x2) 10309 | -7/Factory | Discovered new exit (range 16) 10315 | -7/Factory | Identified exit to Factory 10407 | -7/Factory | Entered Lower Caves 10407 | -7/Lower Caves | Accompanied by 6 allies 10447 | -7/Lower Caves | Hacker 4b assimilated hostile G-50 Soldier 10580 | -7/Lower Caves | A Derelict revealed a hidden shortcut to meet someone special 10582 | -7/Lower Caves | Identified exit to Data Miner 10768 | -7/Lower Caves | Learned Armory trap positions 10768 | -7/Lower Caves | A Commander dispatched an escort 10806 | -7/Lower Caves | Learned 12 Factory zone layouts 10823 | -7/Lower Caves | Encountered a Warlord checkpoint 10984 | -7/Lower Caves | Discovered new exit (range 5) 10985 | -7/Lower Caves | Identified exit to Lower Caves 10991 | -7/Lower Caves | Learned 4 Factory zone layouts 11053 | -7/Lower Caves | Build established: Hacker-Scout 11154 | -7/Lower Caves | Entered another Lower Caves area 11154 | -7/Lower Caves | Accompanied by 5 allies 11155 | -7/Lower Caves | Commander's escort returned to base 11155 | -7/Lower Caves | Commander's escort returned to base 11236 | -7/Lower Caves | Lost 4 parts (1p2n1w) 11302 | -7/Lower Caves | Discovered exit to Factory (range 15) 11460 | -7/Lower Caves | Learned Factory emergency access door positions 11550 | -7/Lower Caves | Learned Factory terminal intel 11801 | -7/Lower Caves | Discovered exit to Data Miner (range 12) 12183 | -7/Lower Caves | Entered Data Miner 12183 | -7/Data Miner | Accompanied by 2 allies 12183 | -7/Data Miner | Discovered new exit (range 7) 12192 | -7/Data Miner | Met Data Miner 12207 | -7/Data Miner | Learned location of Section 7 (-2) 12207 | -7/Data Miner | Acquired the access code to Warlord's prototype stash 12215 | -7/Data Miner | Received God Mode back door access code from Data Miner 12225 | -7/Data Miner | Identified exit to Proximity Caves 12231 | -7/Data Miner | Entered Proximity Caves 12231 | -6/Proximity Caves | Accompanied by 2 allies 12506 | -6/Proximity Caves | Escorted by Enhanced Grunt 12522 | -6/Proximity Caves | Build established: Hacker-Mutant 13112 | -6/Proximity Caves | Build established: Hacker-Scout 13141 | -6/Proximity Caves | Discovered exit to Factory (range 7) 13543 | -6/Proximity Caves | Entered Factory 13543 | -6/Factory | Accompanied by 2 allies 13543 | -6/Factory | Evolved 2 slots: Utility x2 13544 | -6/Factory | Identified exit to Factory 13546 | -6/Factory | Loaded intel: 26 terminal locations 13561 | -6/Factory | Identified exit to Lower Caves 13630 | -6/Factory | Found Prototype Device 13630 | -6/Factory | Identified Exp. Thermal Shield 13645 | -6/Factory | Lost 3 parts (1n1u1w) 13745 | -6/Factory | Repaired Prc. Shock Rifle 13773 | -6/Factory | Build established: Hacker-Mutant 13845 | -6/Factory | Repaired Exp. Terrain Scan Processor? 14133 | -6/Factory | Repaired Exp. Weapon Shielding? 14171 | -6/Factory | Fabricated Adv. Hacking Suite (x1) 14191 | -6/Factory | Incoming investigation squad redirected 14219 | -6/Factory | Fabricated P-60 Hacker? 14325 | -6/Factory | Fabricated Adv. Sensor Array (x1) 14371 | -6/Factory | Repaired KE Penetrator? 14678 | -6/Factory | Discovered exit to Factory (range 15) 15218 | -6/Factory | Fabricated Adv. Hacking Suite (x1) 15308 | -6/Factory | Repaired Microactuators 15501 | -6/Factory | Fabricated Scatter Rocket Array (x1) 15525 | -6/Factory | Entered Lower Caves 15525 | -6/Lower Caves | Accompanied by 1 ally 15951 | -6/Lower Caves | Encountered a Warlord checkpoint 16216 | -6/Lower Caves | A Derelict revealed a hidden shortcut to a safe place 16223 | -6/Lower Caves | Identified exit to Zion 16279 | -6/Lower Caves | Discovered new exit (range 11) 16297 | -6/Lower Caves | Identified exit to Lower Caves 16378 | -6/Lower Caves | Learned Factory terminal intel 16485 | -6/Lower Caves | Entered another Lower Caves area 16485 | -6/Lower Caves | Accompanied by 2 allies 16521 | -6/Lower Caves | Discovered exit to Factory (range 8) 16707 | -6/Lower Caves | Learned 4 Factory zone layouts 16789 | -6/Lower Caves | Discovered exit to Zion (range 12) 17362 | -6/Lower Caves | Entered Zion 17399 | -6/Zion | Discovered new exit (range 12) 17672 | -6/Zion | Found CR-A16's Pointy Stick 17713 | -6/Zion | Found Prototype Device 17731 | -6/Zion | Found GAL Module 17828 | -6/Zion | Discovered new exit (range 5) 17828 | -6/Zion | Saw the warning signs outside the Deep Caves entrance 17829 | -6/Zion | Identified exit to Deep Caves 18025 | -6/Zion | Entered Deep Caves 18091 | -6/Deep Caves | Identified Bomb Factory No. 2 18211 | -6/Deep Caves | Attacked by Z-Imprinter 18235 | -6/Deep Caves | Core integrity fell below 50% 18258 | -6/Deep Caves | Core integrity fell below 20% 18288 | -6/Deep Caves | Destroyed by Z-Imprinter with Zionite Laser-M Last Messages --------------- 18253_ The unstable cave ceiling collapses. 18260_ Z-Imprinter knocked back. 18261_ The unstable cave ceiling collapses. 18264_ Mic. Nuclear Core destroyed. 18265_ Destroyed Prototype Hover Unit. 18265_ Destroyed Prototype Protection. 18265_ Z-Imprinter system corrupted by crushing effect. 18265_ Z-Imprinter knocked back. 18267_ The unstable cave ceiling collapses. 18269_ Z-Imprinter knocked back. 18271_ The unstable cave ceiling collapses. 18271_ Powered Hammer destroyed. 18273_ The unstable cave ceiling collapses. 18274_ Impact Mace destroyed. 18278_ The unstable cave ceiling collapses. 18280_ Imp. Gravmag System destroyed. 18280_ Adv. Melee Analysis Suite destroyed. 18283_ Destroyed Adv. Phase Shifter. 18284_ Exp. Thermal Shield destroyed. 18286_ Destroyed Prototype Hover Unit. Map ----- +----------------------------------------------------+ | | | | | | | | | | | | | | | | | | | | | ?????????????????????????????????????????????????? | | ????????????????????????????????####?????????????? | | ????????????????????????????##### ####??????????? | | ???????##??????????###?????##&! ###????????? | | ##?### #??##?#####"#?????# !! ##???????? | | ## # ??# ##; ##????# #???????? | | ####; #????# #???????? | | #????# ##???????? | | #????## #????????? | | ##?### ##???????? | | ;## # # #???????? | | ##??????? | | ## ##?????? | | #?????? | | ! #?????? | | @ I* ##?????? | | # ## ###??????? | | # ## # ##????????? | | # ##?????????? | | ### # #??????????? | | #?## #### ###????????? | | #?? #??# #???####?? | | #??## ##??# ##### ### | | #???# #???### ## | | ##???## #?????# # | | #?????## #????## #### | | ??????# ####?# ##?? | | #?????? #?## #?? | | ##??????# ?# #??# ## #? | | ##???????# ## #??# ### #? | | ????????## ##?# #?## ##? | | ? ????????????# #?## #???##?? | | ???? ???????????????# #### #??????? | | ?????? ??????????????????# ##??????? | | ?????????????????????????????# ### ####???????? | | ?????????????????????????????# ##?# #??????????? | | ?????????????????????????????# #??# ##?????????? | | ?????????????????????????????# #??# #?????????? | | ?????????????????????????????# #??# #?????????? | | ?????????????????????????????# #??# ##???????### | +----------------------------------------------------+ Best States ------------- Heat Dissipation 56 Energy Generation 18 Energy Capacity 310 Matter Stores 300 Matter Capacity 300 Sight Range 16 Robot Scan Range 16 Terrain Scan Range 20 Terrain Scan Density 1010 Additional Mass Support 9 Armor Coverage 375 Resistance: KI 20 Resistance: TH 30 Weapon Shielding 90 Melee Speed Boost 20 Evasion (%) 56 Targeting Accuracy 5 Melee Accuracy 8 Recoil Reduction 2 Offensive Hacking 40 Defensive Hacking 22 Authchip Count 1 Item Schematics ----------------- Hcp. Storage Unit | -10/Materials | Hacked Huge Storage Unit | -10/Materials | Hacked System Shield | -9/Materials | Scanalyzed Imp. Sensor Array | -8/Materials | Hacked Aerolev Unit | -8/Materials | Scanalyzed Hacking Suite | -8/Materials | Scanalyzed Imp. Signal Interpreter | -8/Materials | Scanalyzed Adv. Weight Redist. System | -8/Materials | Scanalyzed Lrg. Storage Unit | -7/Factory | Scanalyzed Structural Scanner | -7/Factory | Scanalyzed Microactuators | -7/Factory | Scanalyzed Adv. Melee Analysis Suite | -7/Factory | Hacked Exp. Terrain Scan Processor | -7/Factory | Scanalyzed Exp. Weapon Shielding | -7/Factory | Scanalyzed Prc. Shock Rifle | -7/Factory | Scanalyzed Component Analysis Suite | -7/Factory | Scanalyzed Imp. Hacking Suite | -7/Factory | Hacked Adv. Terrain Scanner | -7/Factory | Hacked Combat Drone Bay | -7/Data Miner | Free Lgt. Regenerative Plating | -7/Data Miner | Free Cld. Aerolev Unit | -7/Data Miner | Free Exp. Power Shielding | -7/Data Miner | Free Prc. Rocket Launcher | -7/Data Miner | Free Linear Gravjet | -7/Data Miner | Free Imp. Shock Absorption System | -7/Data Miner | Free Hvy. Shock Bomb Launcher | -7/Data Miner | Free Hvy. Pick | -7/Data Miner | Free Imp. Remote Datajack | -7/Data Miner | Free Graphene Brace | -7/Data Miner | Free Adv. Focal Shield | -7/Data Miner | Free Adv. Sensor Array | -6/Factory | Hacked Adv. Hacking Suite | -6/Factory | Hacked Tesla Rifle | -6/Factory | Hacked Scatter Rocket Array | -6/Factory | Hacked Powered Hammer | -6/Factory | Scanalyzed Impact Mace | -6/Factory | Scanalyzed Exp. Thermal Shield | -6/Factory | Scanalyzed Robot Schematics ------------------ H-55 Commando | -8/Materials | Hacked P-60 Hacker | -7/Factory | Hacked L-41 Fighter | -7/Data Miner | Free M-14 Sweeper | -7/Data Miner | Free H-66 Slayer | -7/Data Miner | Free B-60 Warrior | -7/Data Miner | Free B-48 Gladiator | -7/Data Miner | Free G-50 Soldier | -7/Data Miner | Free Fabricated ------------ H-55 Commando | x2 | -7/Factory L-41 Fighter | x3 | -7/Factory | Preloaded P-60 Hacker | x2 | -7/Factory Adv. Hacking Suite | x1 | -6/Factory | Authchip P-60 Hacker | x2 | -6/Factory Adv. Sensor Array | x1 | -6/Factory Adv. Hacking Suite | x1 | -6/Factory Scatter Rocket Array | x1 | -6/Factory Alien Tech Used ----------------- None Achievements -------------- None Challenges ------------ None Game ------ Seed ThrowingArmorKinecellerator Manual? 0 Play Time 03:06:10 Cumulative 405.2 hours Start 2022.06.20 @ 23:12:41 End 2022.06.21 @ 02:16:13 Sessions 1 Manual Loads 0 Difficulty Rogue Special Mode None Game No. 107 Rogue 107 Adventurer 0 Explorer 0 Win Type - Total 20 Types 15/1/3/0/0/0/0/1/0 Lore% 91 Gallery% 92 Achievement% 77 Wizard Run 0 Options --------- ASCII 0 Keyboard 0 Movement Numpad Keybinds 0 Fullscreen 1 Font 14/SmallcapsGlow Map View 84x54 Tactical HUD 1 Map Filters NONE Filters NONE Steam 1 RUN: 87207c8c-f83e-4841-9d1c-4da5790c2a78